Cogmind - Beta 13 @@@ ROGUE MODE // 2024.07.11 @ 21:07:08 Player: weedlord420 Result: Destroyed by H-61 Shepherd with Heavy Assault Cannon Performance ------------- Evolutions (2) 1000 Regions Visited (7) 1400 Robots Destroyed (130) 650 Value Destroyed (2871) 2871 Prototype IDs (11) 220 Alien Tech Used (0) 0 Bonus (590) 590 TOTAL SCORE: 6731 Bonus ------- High Alert Combat Kills 167 Follower Combat Kills 142 Aligned with FarCom 300 Friendly Fire -19 Cogmind --------- Core Integrity 0/550 Matter 291/300 Energy 31/100 System Corruption 0% Temperature Cool (1) Movement Treading (170) Location -8/Materials Parts ------- > --- POWER (1) -------- (None) > --- PROPULSION (2) --- Armored Treads > --- UTILITY (5) ------ Hardlight Generator > --- WEAPON (3) ------- (None) > --- INVENTORY (5) ---- Deuterium Engine Cooling System Propulsion Shielding Peak State ------------ > --- POWER ------------ Improved Deuterium Engine > --- PROPULSION ------- Armored Treads Armored Treads > --- UTILITY ---------- Cooling System Medium Storage Unit Light Armor Plating Light Armor Plating Hardlight Generator > --- WEAPON ----------- YOLO Cannon Shock Bomb Launcher > --- INVENTORY -------- Deuterium Engine Deuterium Engine Armored Treads Armored Treads Cooling System Large Matter Pod Propulsion Shielding Light Armor Plating Light Armor Plating Spread Laser [Rating: 43] Favorites ----------- Power Deuterium Engine Engine Deuterium Engine Power Core Light Nuclear Core Propulsion Armored Treads Treads Armored Treads Leg Aluminum Leg Utility Light Armor Plating Device Cooling System Storage Medium Storage Unit Protection Light Armor Plating Weapon Beam Cannon Energy Gun Spread Laser Energy Cannon Beam Cannon Ballistic Gun Improved Assault Rifle Launcher Shock Bomb Launcher Slashing Weapon Katana Build | -11 -10 -10 -9 -9 -9 -8 -8 ------- Run | Yrd Mat Min Mat Min Exi Min Mat Slots Evolved 4 | . . . 2 . . . 2 Power . | . . . . . . . . Propulsion . | . . . . . . . . Utility 3 | . . . 2 . . . 1 Weapon 1 | . . . . . . . 1 Parts Attached 65 | 6 6 8 28 . 4 . 13 Power 10 | 1 2 2 4 . . . 1 Engine 8 | 1 2 1 3 . . . 1 Core 2 | . . 1 1 . . . . Reactor . | . . . . . . . . Propulsion 12 | 2 1 2 5 . . . 2 Treads 9 | . . 2 5 . . . 2 Leg 3 | 2 1 . . . . . . Wheel . | . . . . . . . . Hover . | . . . . . . . . Flight . | . . . . . . . . Utility 25 | 1 1 4 11 . 2 . 6 Device 9 | . . 3 3 . 1 . 2 Storage 3 | 1 . . 2 . . . . Processor . | . . . . . . . . Hackware . | . . . . . . . . Protection 13 | . 1 1 6 . 1 . 4 Artifact . | . . . . . . . . Weapon 18 | 2 2 . 8 . 2 . 4 Energy Gun 7 | 2 . . 4 . . . 1 Energy Cannon 6 | . 2 . 2 . 2 . . Ballistic Gun 1 | . . . 1 . . . . Ballistic Cannon . | . . . . . . . . Launcher 3 | . . . 1 . . . 2 Special Weapon . | . . . . . . . . Impact Weapon . | . . . . . . . . Slashing Weapon 1 | . . . . . . . 1 Piercing Weapon . | . . . . . . . . Special Melee Weapon . | . . . . . . . . Unidentified Prototypes 3 | . . . 1 . 2 . . Parts Lost 17 | . . . 5 . . . 12 Power 2 | . . . 2 . . . . Propulsion 3 | . . . . . . . 3 Utility 7 | . . . 2 . . . 5 Weapon 5 | . . . 1 . . . 4 Highest Loss Streak 9 | . . . 2 . . . 9 To Critical Strikes . | . . . . . . . . Average Slot Usage (%) 94 | . 93 100 99 100 93 88 85 Engine 9 | . 14 5 10 11 11 11 8 Core 1 | . . 8 . . . . . Treads 19 | . . 21 22 22 22 22 17 Leg 3 | . 28 6 . . . . . Device 10 | . . 9 10 11 11 11 14 Storage 11 | . 14 14 11 11 11 11 8 Protection 17 | . 8 4 21 22 21 22 20 Energy Gun 6 | . 16 . 13 22 10 . . Energy Cannon 12 | . 11 28 8 . 5 11 8 Naked Turns . | . . . . . . . . Heaviest Build 57 | 13 19 19 35 33 45 45 57 Greatest Support 40 | 20 20 40 40 40 40 40 40 Greatest Overweight (x) 1 | . . . . . 1 1 1 Average Overweight (x) . | . . . . . . 1 . Largest Inventory Capacity 10 | 8 8 8 10 10 10 10 10 Average Capacity 9 | 5 8 8 9 10 10 10 9 Most Carried 10 | 5 8 8 10 10 10 10 10 Average Carried 8 | 4 4 7 9 10 9 10 9 Final Capacity 10 | 8 8 8 10 10 10 10 5 Final Carried 10 | . 7 8 10 10 10 10 3 Class Distribution -------------------- 88% | Mutant 7% | Tank 4% | Scavenger-Mutant Dominant Class ---------------- Mutant | -10/Materials Mutant | -10/Mines Mutant | -9/Materials Mutant | -9/Mines Mutant | -9/Exiles Mutant | -8/Mines Mutant | -8/Materials Resources | -11 -10 -10 -9 -9 -9 -8 -8 ----------- Run | Yrd Mat Min Mat Min Exi Min Mat Matter Collected 964 | 250 70 143 289 26 . 77 109 Remotely . | . . . . . . . . Salvage Created 3765 | . 465 514 1375 103 . 174 1134 Parts 239 | . 31 30 92 4 . 9 73 Haulers Intercepted 10 | . 1 . 6 . . . 3 Recyclers Shooed 2 | . . . 2 . . . . Parts Field Recycled . | . . . . . . . . Retrieved Matter . | . . . . . . . . Parts Self-Destructed . | . . . . . . . . Prevented . | . . . . . . . . Kills | -11 -10 -10 -9 -9 -9 -8 -8 ------- Run | Yrd Mat Min Mat Min Exi Min Mat Combat Hostiles Destroyed 78 | . 10 12 19 4 . 5 28 Guns 18 | . 6 . 8 4 . . . Cannons 29 | . 4 12 6 . . 2 5 AOE 24 | . . . 3 . . 2 19 Classes Destroyed 12 | . 7 2 1 . . . 2 Worker 12 | . 2 . 4 1 . 1 4 Builder 11 | . . 1 . . . . 10 Tunneler 2 | . . 1 . . . 1 . Hauler 10 | . 1 . 6 . . . 3 Recycler 6 | . 1 . 3 . . 1 1 Operator 4 | . 1 . 2 . . . 1 Watcher 7 | . 1 . 3 . . . 3 Swarmer 30 | . 6 3 4 2 . 3 12 Grunt 30 | . 4 9 6 2 . 2 7 Duelist 1 | . . . . . . . 1 Sentry 16 | . . . 9 . . . 7 Hunter 1 | . . . . . . . 1 Best Kill Streak 9 | . 6 4 6 2 . 3 9 Combat Bots Only 6 | . 6 3 6 2 . 3 5 Max Kills in Single Turn 6 | . 1 1 3 2 . 2 6 Gunslinging 1 | . . . . 1 . . . Exploded 4 | . . . 3 . . 1 4 Melee . | . . . . . . . . Uniques/NPCs Destroyed . | . . . . . . . . Combat | -11 -10 -10 -9 -9 -9 -8 -8 -------- Run | Yrd Mat Min Mat Min Exi Min Mat Hostile Shots Fired 339 | . 37 50 109 21 . 10 112 Missed 98 | . 11 12 26 8 . 4 37 Damage Taken 3797 | . 246 392 1051 163 . 272 1673 Core 559 | . 36 60 99 . . . 364 Absorbed by Shields 104 | . . . . . . . 104 Redirected to Shielding 18 | . . . 18 . . . . Regen/Repaired (Parts) 68 | . . . 68 . . . . Core Remaining (%) 78 | 100 . 61 . . . 75 . Volleys Fired 211 | . 33 30 90 7 . 9 42 Largest 2 | . 2 2 2 2 . 1 2 Hottest 136 | . 120 120 130 130 . 100 136 Shots Fired 366 | . 65 58 173 14 . 10 46 Gun 143 | . 35 . 91 14 . . 3 Cannon 217 | . 30 58 81 . . 10 38 Launcher 6 | . . . 1 . . . 5 Special . | . . . . . . . . Kinetic . | . . . . . . . . Thermal 357 | . 65 58 172 14 . 10 38 Explosive 1 | . . . 1 . . . . Electromagnetic 8 | . . . . . . . 8 Robot Hit Streak 15 | . 7 15 14 6 . 5 5 Robot Miss Streak 6 | . 3 6 5 6 . 1 2 Penetration Max . | . . . . . . . . Secondary Targets 1 | . . . . 1 . . . Max Gunslinging Chain 1 | . . . . 1 . . . Shots Hit Robots 206 | . 35 33 102 13 . 5 18 Core Hits 169 | . 18 16 64 21 . 4 46 Critical Kills 6 | . . . 1 . . 1 4 Critical Parts Destroyed . | . . . . . . . . Critical Strikes 11 | . 1 . 5 . . 1 4 Burn 5 | . 1 . 4 . . . . Meltdown 6 | . . . 1 . . 1 4 Melee Attacks . | . . . . . . . . Impact . | . . . . . . . . Slashing . | . . . . . . . . Piercing . | . . . . . . . . Sneak Attacks . | . . . . . . . . Combat Hostiles . | . . . . . . . . Follow-up Attacks . | . . . . . . . . Damage Inflicted 9189 | . 499 634 1773 180 . 883 5220 Guns 1213 | . 221 . 791 180 . . 21 Cannons 4112 | . 278 630 822 . . 440 1942 Explosions 3838 | . . . 157 . . 431 3250 Melee . | . . . . . . . . Ramming 26 | . . 4 3 . . 12 7 Kinetic . | . . . . . . . . Thermal 8837 | . 499 630 1613 180 . 871 5044 Explosive 157 | . . . 157 . . . . Electromagnetic 169 | . . . . . . . 169 Impact . | . . . . . . . . Slashing . | . . . . . . . . Piercing . | . . . . . . . . Highest Corruption 2 | . . . 2 2 2 2 . Average Corruption 1 | . . . 1 2 2 2 . Corruption Purged . | . . . . . . . . Corruption Blocked . | . . . . . . . . Effects 50 | . . . 14 10 8 18 . Message Errors 15 | . . . 3 5 3 4 . Matter Fused 13 | . . . 4 3 2 4 . Heat Flow Errors 5 | . . . 2 . . 3 . Energy Discharges 9 | . . . 3 2 2 2 . Parts Fused 2 | . . . . . 1 1 . Data Loss (minor) 5 | . . . 2 . . 3 . Misfires 1 | . . . . . . 1 . Overload Shots . | . . . . . . . . Overflow Damage 676 | . . . 21 . . 260 395 Projectiles 391 | . . . 10 . . 211 170 Explosions 285 | . . . 11 . . 49 225 Melee . | . . . . . . . . Knockbacks . | . . . . . . . . Impact . | . . . . . . . . Kinetic . | . . . . . . . . Secondary . | . . . . . . . . Self-Inflicted Damage 424 | . . . . . . 201 223 Shots 8 | . . . . . . 3 5 Rammed 7 | . . 2 2 . . 1 2 Targets Rammed 7 | . . 2 2 . . 1 2 Kicked . | . . . . . . . . Crushed . | . . . . . . . . Highest Temperature 381 | . 288 381 250 48 . 114 34 Average Temperature 81 | . 108 139 43 18 . 51 14 Received Heat Transfer 902 | . 66 147 288 63 . 18 320 Effects 4 | . . 4 . . . . . Interference 2 | . . 2 . . . . . Matter Decay 1 | . . 1 . . . . . Short Circuit 1 | . . 1 . . . . . Siege Activations . | . . . . . . . . Robots Corrupted . | . . . . . . . . Combat Hostiles . | . . . . . . . . Parts Fried 1 | . . . . . . . 1 Impact Corruptions . | . . . . . . . . Robots Melted 7 | . . . 2 . . 1 4 Combat Hostiles 7 | . . . 2 . . 1 4 Parts Melted 29 | . 5 . 13 . . . 11 Heat Transferred 12023 | . 1249 1332 3702 230 . 960 4550 Parts Sabotaged . | . . . . . . . . Parts Stolen . | . . . . . . . . Parts Stripped . | . . . . . . . . Power Chain Reactions 2 | . . . . . . . 2 Alert | -11 -10 -10 -9 -9 -9 -8 -8 ------- Run | Yrd Mat Min Mat Min Exi Min Mat Peak Influence 991 | . 211 208 359 300 . 257 991 Initial 139 | . . 58 . 139 . . . Average 184 | . 100 42 161 162 . 82 477 Maximum Alert Level 3 | . 1 1 1 1 . 1 3 Low Security (%) 65 | 100 99 97 55 90 . 80 13 Level 1 18 | . . 2 44 9 . 19 7 Level 2 14 | . . . . . . . 69 Level 3 2 | . . . . . . . 9 Level 4 . | . . . . . . . . Level 5 . | . . . . . . . . High Security . | . . . . . . . . Max Security . | . . . . . . . . Squads Dispatched 8 | . 1 . 4 . . . 3 Investigation 3 | . 1 . 2 . . . . Extermination . | . . . . . . . . Reinforcement 4 | . . . 2 . . . 2 Assault 1 | . . . . . . . 1 Garrison . | . . . . . . . . Intercept . | . . . . . . . . Searches Triggered . | . . . . . . . . Construction Impeded 1 | . . . . . . . 1 Haulers Reinforced . | . . . . . . . . Active Scanning Responses . | . . . . . . . . Cargo Convoy Interrupts . | . . . . . . . . Stealth | -11 -10 -10 -9 -9 -9 -8 -8 --------- Run | Yrd Mat Min Mat Min Exi Min Mat Distress Signals 8 | . 1 . 4 . . . 3 Communications Jammed . | . . . . . . . . Distress Signals . | . . . . . . . . Times Spotted 114 | . 17 12 34 6 . 9 36 Peak Tracking Total 8 | . 6 3 8 3 . 3 8 Tactical Retreats 6 | . 1 . 5 . . . . Traps | -11 -10 -10 -9 -9 -9 -8 -8 ------- Run | Yrd Mat Min Mat Min Exi Min Mat Traps Triggered 4 | . 1 . 3 . . . . Indirectly . | . . . . . . . . Trap Hack Attempts . | . . . . . . . . Triggered . | . . . . . . . . Disarmed . | . . . . . . . . Reprogrammed . | . . . . . . . . Reused . | . . . . . . . . Traps Extracted . | . . . . . . . . Installed . | . . . . . . . . Triggered . | . . . . . . . . Machines | -11 -10 -10 -9 -9 -9 -8 -8 ---------- Run | Yrd Mat Min Mat Min Exi Min Mat Machines Disabled 14 | . . . . 1 . 3 10 Max in Single Turn 2 | . . . . . . 2 2 Garrison Access 1 | . . . . . . . 1 Machines Repaired . | . . . . . . . . Machines Dismantled . | . . . . . . . . Machines Sabotaged . | . . . . . . . . Overloaded Fab Kills . | . . . . . . . . Hacking | -11 -10 -10 -9 -9 -9 -8 -8 --------- Run | Yrd Mat Min Mat Min Exi Min Mat Machines Accessed 13 | . 4 . 6 1 . . 2 Terminals 10 | . 4 . 4 1 . . 1 Fabricators . | . . . . . . . . Repair Stations 2 | . . . 1 . . . 1 Recycling Units . | . . . . . . . . Scanalyzers 1 | . . . 1 . . . . Garrison Access . | . . . . . . . . Total Hacks 33 | . 14 . 15 1 . . 3 Successful 22 | . 9 . 10 1 . . 2 Failed 11 | . 5 . 5 . . . 1 Catastrophic 1 | . . . . . . . 1 Database Lockouts . | . . . . . . . . Manual 1 | . . . . . 1 . . Terminals 27 | . 14 . 11 1 . . 1 Fabricators . | . . . . . . . . Repair Stations 4 | . . . 2 . . . 2 Recycling Units . | . . . . . . . . Scanalyzers 2 | . . . 2 . . . . Garrison Access . | . . . . . . . . Terminal Hacks 17 | . 9 . 6 1 . . 1 Record 1 | . 1 . . . . . . Robot Analysis 1 | . . . 1 . . . . Prototype ID Bank 4 | . 2 . 2 . . . . Branch Access Points 2 | . 1 . 1 . . . . Unreport Threat 3 | . 2 . 1 . . . . Locate Traps 3 | . 1 . 1 . . . 1 Maintenance Status 1 | . 1 . . . . . . Registered Components 1 | . 1 . . . . . . Zone Layout 1 | . . . . 1 . . . Fabricator Hacks . | . . . . . . . . Repair Station Hacks 3 | . . . 2 . . . 1 Scan Component 2 | . . . 1 . . . 1 Repair 1 | . . . 1 . . . . Recycling Unit Hacks . | . . . . . . . . Scanalyzer 2 | . . . 2 . . . . Insert Component 1 | . . . 1 . . . . Analyze 1 | . . . 1 . . . . Garrison Access Hacks . | . . . . . . . . Unauthorized Hacks . | . . . . . . . . Terminals . | . . . . . . . . Fabricators . | . . . . . . . . Repair Stations . | . . . . . . . . Recycling Units . | . . . . . . . . Scanalyzers . | . . . . . . . . Garrison Access . | . . . . . . . . Data Cores Recovered 1 | . 1 . . . . . . Used . | . . . . . . . . Hacking Detections 8 | . 3 . 4 . . . 1 Full Trace Events 1 | . . . 1 . . . . Feedback Events . | . . . . . . . . Feedback Blocked . | . . . . . . . . Robot Schematics Acquired . | . . . . . . . . Robots Built . | . . . . . . . . Authchips . | . . . . . . . . Time . | . . . . . . . . Total Robot Build Rating . | . . . . . . . . Part Schematics Acquired 1 | . . . 1 . . . . Parts Built . | . . . . . . . . Authchips . | . . . . . . . . Time . | . . . . . . . . Total Part Build Rating . | . . . . . . . . Parts Repaired 1 | . . . 1 . . . . Time 26 | . . . 26 . . . . Parts Recycled . | . . . . . . . . Recycled Matter . | . . . . . . . . Retrieved Matter . | . . . . . . . . Retrieved Components . | . . . . . . . . Parts Scanalyzed 1 | . . . 1 . . . . Part Schematics Acquired 1 | . . . 1 . . . . Parts Damaged . | . . . . . . . . Bothacking | -11 -10 -10 -9 -9 -9 -8 -8 ------------ Run | Yrd Mat Min Mat Min Exi Min Mat Used RIF Installer . | . . . . . . . . Robots Hacked . | . . . . . . . . Non-combat . | . . . . . . . . Combat . | . . . . . . . . Robot Hacks Applied . | . . . . . . . . Relay Couplers Released 2 | . . . . . . . 2 Machine Destruction 2 | . . . . . . . 2 Fabnet Peak Effective % . | . . . . . . . . Robots Rewired . | . . . . . . . . Allies Hacked . | . . . . . . . . Hacks Repelled . | . . . . . . . . Allies | -11 -10 -10 -9 -9 -9 -8 -8 -------- Run | Yrd Mat Min Mat Min Exi Min Mat Total Allies 4 | . . . . 4 . . . Largest Group 4 | . . . . 4 4 3 . Highest-Rated Group 71 | . . . . 71 71 40 . Highest-Rated Ally 31 | . . . . 31 31 16 . Total Orders . | . . . . . . . . Ally Attacks 39 | . . . . 7 . 32 . Total Damage 532 | . . . . 61 . 471 . Kills 4 | . . . . 1 . 3 . Allies Corrupted . | . . . . . . . . Allies Melted . | . . . . . . . . Intel | -11 -10 -10 -9 -9 -9 -8 -8 ------- Run | Yrd Mat Min Mat Min Exi Min Mat Robot Analysis Total 1 | . . . 1 . . . . Derelict Logs Recovered 1 | . . 1 . . . . . Drone Launches . | . . . . . . . . Drone Recoveries . | . . . . . . . . Exploration | -11 -10 -10 -9 -9 -9 -8 -8 ------------- Run | Yrd Mat Min Mat Min Exi Min Mat Turns Passed 8736 | 47 721 1624 2376 547 456 1278 1687 Spaces Moved 3833 | 41 413 640 1150 308 217 495 569 Core 20 | 20 . . . . . . . Treads 3260 | . . 521 1150 308 217 495 569 Legs 553 | 21 413 119 . . . . . Wheels . | . . . . . . . . Hover . | . . . . . . . . Flight . | . . . . . . . . Fastest Speed 50 | 50 120 120 160 170 170 250 170 Average Speed 184 | 85 120 152 168 170 205 250 249 Slowest Speed 250 | 120 120 160 170 170 250 250 250 Overloaded Moves . | . . . . . . . . Propulsion Burnouts . | . . . . . . . . Robots Hopped . | . . . . . . . . Cave-ins Triggered . | . . . . . . . . Exploration Rate (%) 69 | 3 61 99 98 70 60 98 65 Regions Visited 7 Branch Regions 4 Pre-discovered Areas 1 | . . . . 1 . . . Known Exits Taken 2 | . 1 . 1 . . . . Unknown Exits Taken 5 | 1 . 1 . 1 1 1 . Scrap Searched 5 | . . 1 . 2 . 2 . Spaces Dug 112 | . . . . . . 18 94 Terrain Destroyed 584 | . . . 9 . . 155 420 Melee . | . . . . . . . . Projectile 23 | . . . . . . 5 18 AOE 561 | . . . 9 . . 150 402 Terrain Rammed . | . . . . . . . . Walls Destroyed . | . . . . . . . . Machines Disabled . | . . . . . . . . Actions | -11 -10 -10 -9 -9 -9 -8 -8 --------- Run | Yrd Mat Min Mat Min Exi Min Mat Total 5044 | 53 574 1226 1423 318 231 508 711 Wait 845 | . 106 544 112 4 . 4 75 Move 3826 | 40 412 639 1149 307 216 494 569 Hop . | . . . . . . . . Pick Up 51 | 6 12 1 20 . 5 . 7 Fast Attach 7 | 1 . 1 5 . . . . Attach 23 | 5 1 . 7 . 3 . 7 Detach . | . . . . . . . . Swap 35 | . 5 7 16 . 1 . 6 Drop 39 | 1 5 2 22 . 6 . 3 Fire 211 | . 33 30 90 7 . 9 42 Melee . | . . . . . . . . Ram . | . . . . . . . . Kick . | . . . . . . . . Crush 7 | . . 2 2 . . 1 2 Escape Stasis . | . . . . . . . . Rewire . | . . . . . . . . Trap . | . . . . . . . . Miscellaneous . | . . . . . . . . Route ------- -11/Scrapyard -10/Materials (discovered 3 exits: *Mat x2 / *Min) -10/Mines (discovered 3 exits: *Mat x2 / [*Sub]) -9/Materials (discovered 6 exits: *Mat x3 / *Min / *Sto x2) -9/Mines (discovered 2 exits: *Mat / *Exi) -9/Exiles -8/Mines (discovered 2 exits: *Mat x2) -8/Materials (discovered 2 exits: [*Fac x2]) History --------- Turn | Location | Event 2 | -11/Scrapyard | Met Revision 17 15 | -11/Scrapyard | Discovered new exit (range 15) 48 | -11/Scrapyard | Entered Materials 270 | -10/Materials | Identified exit to Mines 316 | -10/Materials | Build established: Mutant 373 | -10/Materials | Discovered new exit (range 10) 496 | -10/Materials | Discovered new exit (range 8) 748 | -10/Materials | Derelicts attacked the area 769 | -10/Materials | Entered Mines 821 | -10/Mines | Excavation squad dispatched 821 | -10/Mines | A large section of the Mines collapsed 1071 | -10/Mines | Excavation squad dispatched 1179 | -10/Mines | Discovered new exit (range 5) 1429 | -10/Mines | Discovered new exit (range 12) 1615 | -10/Mines | Learned 2 Materials zone layouts 1624 | -10/Mines | Found a hidden stash of uninstalled traps 2194 | -10/Mines | Discovered new exit (range 5) 2393 | -10/Mines | Entered Materials 2393 | -9/Materials | Evolved 2 slots: Utility x2 2415 | -9/Materials | Discovered new exit (range 15) 2688 | -9/Materials | Discovered new exit (range 15) 2766 | -9/Materials | Build established: Scavenger-Mutant 2815 | -9/Materials | Discovered new exit (range 11) 2993 | -9/Materials | Repaired Beam Cannon 3141 | -9/Materials | Build established: Mutant 3161 | -9/Materials | Identified exit to Mines 3161 | -9/Materials | Identified exit to Storage 3204 | -9/Materials | Discovered new exit (range 16) 4502 | -9/Materials | Discovered new exit (range 15) 4769 | -9/Materials | Entered Mines 4785 | -9/Mines | Assisted by bots powering up and referring to "LRC-V3" 4792 | -9/Mines | Met a Derelict bent on vengeance 4871 | -9/Mines | Discovered new exit (range 12) 4882 | -9/Mines | A weapon hastily lodged in a ceiling crevice suddenly fell to the ground 4940 | -9/Mines | Escorted by a lone wolf Derelict 4960 | -9/Mines | Learned location of Storage (-9) 5304 | -9/Mines | Deemed a non-threat by the Exiles lab entrance 5306 | -9/Mines | Discovered new exit (range 5) 5316 | -9/Mines | Entered Exiles 5316 | -9/Exiles | Accompanied by 4 allies 5364 | -9/Exiles | Met 8R-AWN 5393 | -9/Exiles | Met EX-HEX 5442 | -9/Exiles | Met EX-BIN 5466 | -9/Exiles | Aligned with FarCom system 5468 | -9/Exiles | Given EX-Vault access code 5512 | -9/Exiles | Opened EX-Vault 5520 | -9/Exiles | Found Prototype Energy Cannon 5522 | -9/Exiles | Identified YOLO Cannon 5525 | -9/Exiles | Found Prototype Device 5526 | -9/Exiles | Identified Cloak of Protection 5592 | -9/Exiles | Warned to stay clear of 0b10 Research branches 5662 | -9/Exiles | Met EX-DEC 5752 | -9/Exiles | Discovered new exit (range 10) 5772 | -9/Exiles | Left Exiles lab with YOLO Cannon 5772 | -9/Exiles | Entered Mines 5772 | -8/Mines | Accompanied by 3 allies 5840 | -8/Mines | Lost 3 allies 5981 | -8/Mines | Discovered new exit (range 13) 6903 | -8/Mines | Discovered new exit (range 15) 7050 | -8/Mines | Entered Materials 7050 | -8/Materials | Evolved 2 slots: Utility x1, Weapon x1 7639 | -8/Materials | Discovered new exit (range 15) 8395 | -8/Materials | Build established: Tank 8516 | -8/Materials | Discovered new exit (range 13) 8712 | -8/Materials | Core integrity fell below 50% 8720 | -8/Materials | Core integrity fell below 20% 8737 | -8/Materials | Destroyed by H-61 Shepherd with Heavy Assault Cannon Last Messages --------------- R-06 Scavenger collects Flight Unit. U-05 Engineer lays Concrete. Arc Projector destroyed. Shock Bomb Launcher destroyed. H-61 Shepherd heat damages core (-14). Imp. Deuterium Engine severed. U-05 Engineer lays Concrete. H-61 Shepherd heat damages core (-16). U-05 Engineer lays Concrete. H-61 Shepherd heat damages Weapon Cycler. U-05 Engineer lays Concrete. H-61 Shepherd heat short circuits Visual Processing Unit. U-05 Engineer lays Concrete. H-61 Shepherd heat damages Arm. Treads, Prototype Device, Dynamic Insulation System. U-05 Engineer lays Concrete. U-05 Engineer builds a Wall. U-05 Engineer lays Concrete. Penetrated by Slug. Map ----- +----------------------------------------------------+ | | | | | | | ???????????????????????????????????? | | ???????????????????????????????????? | | ???????????????????????????????????? | | ???????????????????????????????????? | | ???????????????????????????????????? | | ???????????????????????????????????? | | ???????????????????????????????????? | | ???????????????????????????????????? | | ???????????????????????????????????? | | ???????????????????????????????????? | | ??????????????????????####+####????? | | ????????????????????### #????? | | ???????????????????? #????? | | ????????????????????? #????? | | ????????????????????? #????? | | ?????????????????????? #????? | | ?????????????????????? ! #????? | | ??????????????????????# #????? | | ??????????????????????# #????? | | ??????????????????????# #????? | | ?????????????????????## ! #????? | | #????????????????????# H=% #????? | | ####????????##########; @ #????? | | ] #????????#//!!!!# l ####??? | | #????????#//!!!!# l #??? | | #????????# # l #??? | | ####+##### # #??? | | ## #??? | | ## u * #??? | | """## *% % #??? | | # T^ ^ u g #??? | | ^ ^ #%%! ;;#### ##??? | | """ m % !##??? #???? | | # """ #?????#???? | | # """ ; !G" #?????????? | | # "#% "" #?????????? | | # +" #?????????? | | # ## #?????????? | | ##T## #"T"#"#+##########?????????? | | ?#### ##### ??????????????????? | | ????# #???#? ?????????????????? | | ????# #?????!! ????????????????? | | ????# #?????! #???????????????? | | ????# #?????! #???????????????? | | ????# #????? [#???????????????? | | ????# #?????######???????????????? | | ???? "??????????????????????????? | +----------------------------------------------------+ Best States ------------- Heat Dissipation 53 Energy Generation 16 Energy Capacity 290 Matter Stores 300 Matter Capacity 300 Sight Range 16 Terrain Scan Density 10 Armor Coverage 450 Propulsion Shielding 33 Evasion (%) 55 Recoil Reduction 2 Item Schematics ----------------- Arm. Treads | -9/Materials | Scanalyzed Robot Schematics ------------------ None Fabricated ------------ Nothing Alien Tech Used ----------------- None Achievements -------------- None Challenges ------------ None Game ------ Seed SalvagePulseExpander Manual? 0 Play Time 00:37:40 Cumulative 30.0 hours Start 2024.07.11 @ 20:12:32 End 2024.07.11 @ 21:07:08 Sessions 1 Manual Loads 0 Difficulty Rogue Special Mode None Game No. 67 Rogue 66 Adventurer 1 Explorer 0 Win Type - Total 0 Types 0/0/0/0/0/0/0/0/0 Lore% 14 Gallery% 26 Achievement% 22 Wizard Run 0 Options --------- Layout 1 ASCII 0 Keyboard 0 Movement Mouse Keybinds 0 Fullscreen 2 Font 24/Terminus Map View 50x35 Zoom Use 0% Tactical HUD 0 Map Filters NONE Filters NONE Steam 1 RUN: 7ba489c9-9b0f-41ca-bdd2-038173ef5287